bitfinex-derivatives/quotes_BTCF0:USTF0_20250318
["timestamp","ask_amount","ask_price","bid_price","bid_amount"]
[1742297148397,0.2801,82801.0,82800.0,0.58866528]
[1742297148598,0.2801,82801.0,82800.0,0.56066528]
[1742297149498,0.2801,82801.0,82800.0,0.55766528]
[1742297149798,0.2801,82801.0,82800.0,0.55866528]
[1742297151692,0.2801,82801.0,82800.0,0.55766528]
[1742297151887,0.2801,82801.0,82800.0,0.55866528]
[1742297152094,0.2801,82801.0,82800.0,0.55666528]
[1742297152294,0.2801,82801.0,82800.0,0.55966528]
[1742297152890,0.2801,82801.0,82800.0,0.55866528]
[1742297153093,0.2801,82801.0,82800.0,0.55966528]
[1742297153598,0.2801,82801.0,82800.0,0.55866528]
[1742297155690,0.3123,82801.0,82800.0,0.55866528]
[1742297158404,0.4330811,82801.0,82800.0,0.55866528]
[1742297158905,0.3123,82801.0,82800.0,0.55866528]
[1742297159505,0.4330811,82801.0,82800.0,0.55866528]
[1742297160197,0.3123,82801.0,82800.0,0.55866528]
[1742297160610,0.4330811,82801.0,82800.0,0.55866528]
[1742297163312,0.4330811,82801.0,82800.0,0.19786528]
[1742297163609,0.3123,82801.0,82800.0,0.19786528]
[1742297163809,0.4330811,82801.0,82800.0,0.19786528]
[1742297167311,0.4330811,82801.0,82800.0,0.0661]
[1742297167518,0.1207855,82798.0,82797.0,0.01559539]
[1742297167701,0.1207855,82798.0,82792.0,0.87758117]
[1742297167702,0.1207913,82794.0,82793.0,0.1533925]
[1742297167903,0.3607913,82794.0,82793.0,0.1533928]
[1742297168111,0.5406313,82794.0,82793.0,0.16758415]
[1742297168310,0.5406313,82794.0,82793.0,0.04679135]
[1742297168502,0.5406313,82794.0,82793.0,0.01419135]
[1742297168703,0.1208103,82781.0,82775.0,0.8774]
[1742297168908,0.1208176,82776.0,82775.0,0.9087]
[1742297169111,0.3608176,82776.0,82775.0,1.029519]
[1742297169317,0.4245176,82776.0,82775.0,1.029519]
[1742297169507,0.4245176,82776.0,82775.0,1.07635586]
[1742297169904,0.4225176,82776.0,82775.0,1.07635586]
[1742297171102,0.4225176,82776.0,82775.0,1.07735586]
[1742297171298,0.3037,82776.0,82775.0,1.07735586]
[1742297171912,0.3037,82776.0,82775.0,1.07935586]
[1742297172619,0.4245176,82776.0,82775.0,1.07935586]
[1742297178015,0.4245176,82776.0,82775.0,1.09034114]
[1742297178016,0.2732,82776.0,82775.0,1.09034114]
[1742297178217,0.24,82776.0,82775.0,1.09034114]
[1742297179522,0.16397228,82776.0,82775.0,1.20798114]
[1742297179713,0.0603917,82800.0,82783.0,0.01098528]
[1742297179714,0.0301,82800.0,82783.0,0.01098528]
[1742297180025,0.0301,82800.0,82794.0,0.1207913]
[1742297180026,0.0301,82795.0,82794.0,0.1207913]
[1742297180215,0.2301,82795.0,82794.0,0.1207913]
[1742297180410,0.2301,82795.0,82794.0,0.13177658]
[1742297181528,0.2341,82795.0,82794.0,0.13177658]
[1742297181721,0.2341,82795.0,82794.0,0.16297658]
[1742297181921,0.2371,82795.0,82794.0,0.16297658]
[1742297183028,0.2371,82795.0,82794.0,0.22557658]
[1742297183821,0.2341,82795.0,82794.0,0.22557658]
[1742297184014,0.2341,82795.0,82794.0,0.22657658]
[1742297184329,0.2301,82795.0,82794.0,0.22757658]
[1742297184727,0.2301,82795.0,82794.0,0.22957658]
[1742297186922,0.3508899,82795.0,82794.0,0.19837658]
[1742297187422,0.3827899,82795.0,82794.0,0.19837658]
[1742297187728,0.3827899,82795.0,82794.0,0.16397658]
[1742297187917,0.3827899,82795.0,82794.0,0.13477658]
[1742297188118,0.3827899,82795.0,82794.0,0.19817658]
[1742297188614,0.262,82795.0,82794.0,0.19817658]
[1742297189842,0.262,82795.0,82794.0,0.19617658]
[1742297190134,0.262,82795.0,82794.0,0.19817658]
[1742297190724,0.2301,82795.0,82794.0,0.31681658]
[1742297190927,0.2,82795.0,82794.0,0.31681658]
[1742297191531,0.2,82795.0,82794.0,0.31281658]
[1742297191833,0.2,82795.0,82794.0,0.31781658]
[1742297193132,0.2,82795.0,82794.0,1.19533658]
[1742297199131,0.0302,82799.0,82798.0,0.1207855]
[1742297199435,0.0402,82799.0,82798.0,0.13177078]
[1742297199631,0.0402,82799.0,82798.0,0.22837078]
[1742297199832,0.1176,82820.0,82811.0,0.1207665]
[1742297200133,0.0931787,82818.0,82817.0,0.1207563]
[1742297200340,0.3431787,82818.0,82817.0,0.1207563]
[1742297200833,0.3431787,82818.0,82817.0,0.13819098]
[1742297201236,0.3736787,82818.0,82817.0,0.13819098]
[1742297202919,0.4066787,82818.0,82817.0,0.13819098]
[1742297209833,0.4066787,82818.0,82817.0,0.01743468]
[1742297210033,0.1811513,82811.0,82810.0,0.1207679]
[1742297210234,0.4411513,82811.0,82810.0,0.1207679]
[1742297210731,0.4411513,82811.0,82810.0,0.13885881]
[1742297210931,0.5046513,82811.0,82810.0,0.13885881]
[1742297212339,0.5046513,82811.0,82810.0,0.13985881]
[1742297213239,0.5046513,82811.0,82810.0,0.13885881]
[1742297215044,0.5046513,82811.0,82810.0,0.13885891]
[1742297218442,0.3235,82811.0,82810.0,0.18024419]
[1742297218645,0.3235,82811.0,82810.0,0.24244419]
[1742297220443,0.24256532,82811.0,82810.0,0.36004419]
[1742297220645,0.24256532,82811.0,82810.0,0.24244419]
[1742297220849,0.24256532,82811.0,82810.0,0.36004419]
[1742297222137,0.24256532,82811.0,82810.0,0.36910334]
[1742297222837,0.24256532,82811.0,82810.0,0.37010334]
[1742297224651,0.0624,82818.0,82817.0,0.1207578]
[1742297224852,0.1224,82818.0,82817.0,0.49254308]
[1742297225047,0.1224,82818.0,82817.0,0.55564308]
[1742297232857,0.2431563,82818.0,82817.0,0.16364308]
[1742297233044,0.2431563,82818.0,82817.0,0.13174308]
[1742297235350,0.2431563,82818.0,82817.0,0.1207578]
[1742297238049,0.1207636,82813.0,82812.0,0.2415237]
[1742297238249,0.4007636,82813.0,82812.0,0.2415237]
[1742297238458,0.4657636,82813.0,82812.0,0.2415237]
[1742297238759,0.5833236,82813.0,82812.0,0.1207641]
[1742297238949,0.1207665,82811.0,82810.0,0.01809091]
[1742297239148,0.3807665,82811.0,82810.0,0.120768]
[1742297239343,0.4447665,82811.0,82810.0,0.120768]
[1742297239749,0.120768,82810.0,82809.0,0.12094997]
[1742297239953,0.391668,82810.0,82809.0,0.12094997]
[1742297240154,0.0603899,82802.0,82798.0,0.1779521]
[1742297240458,0.1207826,82800.0,82799.0,0.01106528]
[1742297240661,0.3807826,82800.0,82799.0,0.13184928]
[1742297240962,0.4457826,82800.0,82799.0,0.14918694]
[1742297241366,0.4457826,82800.0,82799.0,0.01741766]
[1742297241951,0.4457826,82800.0,82799.0,0.01733766]
[1742297242164,0.1207855,82798.0,82797.0,0.1207865]
[1742297242351,0.3807855,82798.0,82797.0,0.1207865]
[1742297242653,0.1207869,82797.0,82796.0,0.1207878]
[1742297242858,0.1207869,82797.0,82791.0,0.00018117]
[1742297242859,0.1197942,82792.0,82791.0,0.00018117]
[1742297243157,0.4973542,82792.0,82791.0,0.00018117]
[1742297243465,0.5614542,82792.0,82791.0,0.12097687]
[1742297243856,0.5604542,82792.0,82791.0,0.12097687]
[1742297244163,0.5584542,82792.0,82791.0,0.12097687]
[1742297244763,0.5604542,82792.0,82791.0,0.12097687]
[1742297245058,0.5604542,82792.0,82791.0,0.02181206]
[1742297245652,0.9212542,82792.0,82791.0,0.02181206]
[1742297246153,0.9232542,82792.0,82791.0,0.02181206]
[1742297251563,0.9232542,82792.0,82791.0,0.14260776]
[1742297251957,0.9558542,82792.0,82791.0,0.00018117]
[1742297252156,0.1208103,82781.0,82780.0,0.2416214]
[1742297252363,0.1208117,82780.0,82776.0,0.9694683]
[1742297252557,0.4860117,82780.0,82776.0,0.87736]
[1742297252962,0.4860117,82780.0,82779.0,0.02182479]
[1742297253967,0.4860117,82780.0,82779.0,0.14263799]
[1742297254667,0.4860117,82780.0,82779.0,0.02182479]
[1742297254862,0.4860117,82780.0,82779.0,0.02282479]
[1742297255466,0.4860117,82780.0,82779.0,0.14363799]
[1742297256457,0.4860117,82780.0,82779.0,0.17543799]
[1742297256760,0.4534117,82780.0,82779.0,0.20633799]
[1742297256966,0.4534117,82780.0,82779.0,0.23743799]
[1742297258271,0.4534117,82780.0,82779.0,0.20633799]
[1742297261473,0.4534117,82780.0,82779.0,0.02282479]
[1742297262659,0.4544117,82780.0,82779.0,0.02182479]
[1742297263062,0.4544117,82780.0,82779.0,0.02178479]
[1742297263274,0.1208147,82778.0,82777.0,0.0331]
[1742297263572,0.5084147,82778.0,82777.0,0.0331]
[1742297263782,0.5714147,82778.0,82777.0,0.1844161]
[1742297263967,0.5714147,82778.0,82777.0,0.20642412]
[1742297265272,0.5724147,82778.0,82777.0,0.20642412]
[1742297266176,0.4548147,82778.0,82777.0,0.20642412]
[1742297266376,0.4558147,82778.0,82777.0,0.20642412]
[1742297267365,0.4578147,82778.0,82777.0,0.20642412]
[1742297268279,0.4568147,82778.0,82777.0,0.20642412]
[1742297268973,0.4538147,82778.0,82777.0,0.20642412]
[1742297269171,0.4578147,82778.0,82777.0,0.20642412]
[1742297270576,0.4578147,82778.0,82777.0,0.08560802]
[1742297271970,0.4578147,82778.0,82777.0,0.20642412]
[1742297272373,0.335,82778.0,82777.0,0.20642412]
[1742297272580,0.274,82778.0,82777.0,0.2174094]
[1742297272878,0.275,82778.0,82777.0,0.2174094]
[1742297279373,0.25017883,82778.0,82777.0,0.2174094]
[1742297279575,0.005,82778.0,82777.0,0.2174094]
[1742297281181,0.002,82778.0,82777.0,0.2174094]
[1742297281383,0.004,82778.0,82777.0,0.2174094]
[1742297281681,0.244,82778.0,82777.0,0.3349694]
[1742297281877,0.3648147,82778.0,82777.0,0.3349694]
[1742297283081,0.4304147,82778.0,82777.0,0.3349694]
[1742297283484,0.4304147,82778.0,82777.0,0.2174094]
[1742297284985,0.244,82778.0,82777.0,0.2174094]
[1742297288491,0.244,82778.0,82777.0,0.3349694]
[1742297288687,0.004,82778.0,82777.0,0.3349694]
[1742297297299,0.004,82778.0,82777.0,1.2125694]
[1742297302600,0.004,82778.0,82777.0,1.0950094]
[1742297302792,0.004,82778.0,82777.0,1.2125294]
[1742297304007,0.004,82778.0,82777.0,1.1820294]
[1742297305590,0.004,82778.0,82777.0,0.89960802]
[1742297305908,0.004,82778.0,82777.0,1.02042412]
[1742297305909,0.1248147,82778.0,82777.0,1.02042412]
[1742297306095,0.1899147,82778.0,82777.0,1.02042412]
[1742297307098,0.1879147,82778.0,82777.0,1.02042412]
[1742297307503,0.1869147,82778.0,82777.0,1.02042412]
[1742297308004,0.3044347,82778.0,82777.0,0.89960802]
[1742297308817,0.3044347,82778.0,82777.0,1.02042412]
[1742297309593,0.3054347,82778.0,82777.0,0.89960802]
[1742297310096,0.3064347,82778.0,82777.0,0.89960802]
[1742297311996,0.3074347,82778.0,82777.0,0.89960802]
[1742297312709,0.3054347,82778.0,82777.0,0.89960802]
[1742297312909,0.3074347,82778.0,82777.0,0.89960802]
[1742297313292,0.3074347,82778.0,82777.0,0.02200802]
[1742297313499,0.1208161,82777.0,82776.0,4e-05]
[1742297313709,0.1208161,82777.0,82776.0,0.02030772]
[1742297313904,0.1826161,82777.0,82776.0,0.02030772]
[1742297314809,0.1846161,82777.0,82776.0,0.02030772]
[1742297315215,0.1866161,82777.0,82776.0,0.02030772]
[1742297321111,0.1856161,82777.0,82776.0,0.02030772]
[1742297321916,0.1866161,82777.0,82776.0,0.02030772]
[1742297322217,0.1208234,82772.0,82771.0,0.00018117]
[1742297322405,0.120838,82762.0,82760.0,0.87768]
[1742297322717,0.120838,82762.0,82761.0,0.4816395]
[1742297323015,0.214238,82762.0,82761.0,0.4816395]
[1742297323215,0.214238,82762.0,82761.0,0.1208395]
[1742297323414,0.214238,82762.0,82761.0,0.1536395]
[1742297323998,0.214238,82762.0,82761.0,0.14054834]
[1742297324420,0.214238,82762.0,82761.0,0.17334834]
[1742297325114,0.0633,82762.0,82761.0,0.18433362]
[1742297325307,0.184138,82762.0,82761.0,0.24703362]
[1742297325711,0.184138,82762.0,82761.0,0.24803362]
[1742297327618,0.304138,82762.0,82761.0,0.24803362]
[1742297328107,0.304138,82762.0,82761.0,0.24903362]
[1742297328707,0.304138,82762.0,82761.0,0.24803362]
[1742297328908,0.304138,82762.0,82761.0,0.25003362]
[1742297329424,0.304138,82762.0,82761.0,0.24903362]
[1742297329722,0.304138,82762.0,82761.0,0.25003362]
[1742297330715,0.12,82762.0,82761.0,0.25003362]
[1742297331113,0.12,82762.0,82761.0,0.36759362]
[1742297332326,0.12,82762.0,82761.0,0.36559362]
[1742297332519,0.12,82762.0,82761.0,0.36759362]
[1742297334030,0.12,82762.0,82761.0,0.36859362]
[1742297334622,0.12,82762.0,82761.0,0.36959362]
[1742297335430,0.11981883,82762.0,82761.0,0.73039362]
[1742297335721,0.00018117,82770.0,82769.0,0.1208278]
[1742297335927,0.03018117,82770.0,82769.0,0.49261308]
[1742297336122,0.03018117,82770.0,82769.0,0.58381308]
[1742297337527,0.18230747,82770.0,82769.0,0.58381308]
[1742297337716,0.21510747,82770.0,82769.0,0.58381308]
[1742297337919,0.21510747,82770.0,82769.0,0.58581308]
[1742297338113,0.09428117,82770.0,82769.0,0.58581308]
[1742297338513,0.21510747,82770.0,82769.0,0.58581308]
[1742297339614,0.21510747,82770.0,82769.0,0.58681308]
[1742297340317,0.21510747,82770.0,82769.0,0.58381308]
[1742297340518,0.21510747,82770.0,82769.0,0.58581308]
[1742297341327,0.21510747,82770.0,82769.0,0.3929]
[1742297341523,0.24530747,82770.0,82769.0,0.5137278]
[1742297342024,0.24530747,82770.0,82769.0,0.5127278]
[1742297342820,0.24630747,82770.0,82769.0,0.5437278]
[1742297344230,0.24630747,82770.0,82769.0,0.1829278]
[1742297345222,0.21510747,82770.0,82769.0,0.1829278]
[1742297345423,0.21610747,82770.0,82769.0,0.1829278]
[1742297345822,0.21510747,82770.0,82769.0,0.1829278]
[1742297346824,0.21510747,82770.0,82768.0,0.1208687]
[1742297346825,0.1208278,82769.0,82768.0,4e-05]
[1742297347130,0.3808278,82769.0,82768.0,4e-05]
[1742297347330,0.4443278,82769.0,82768.0,4e-05]
[1742297348037,0.4443278,82769.0,82768.0,0.1208693]
[1742297350128,0.4443278,82769.0,82768.0,0.1540693]
[1742297350730,0.4443278,82769.0,82768.0,4e-05]
[1742297351132,0.1812476,82767.0,82766.0,0.1208308]
[1742297351332,0.4412476,82767.0,82766.0,0.1208308]
[1742297352743,0.5587676,82767.0,82766.0,0.1208308]
[1742297353343,0.5587676,82767.0,82766.0,0.19521608]
[1742297353344,0.4412476,82767.0,82766.0,0.19521608]
[1742297353939,0.4412476,82767.0,82766.0,0.19621608]
[1742297357443,0.4412476,82767.0,82766.0,0.16381608]
[1742297359743,0.4412476,82767.0,82766.0,0.001]
[1742297360547,0.4412476,82767.0,82766.0,0.1218322]
[1742297360737,0.4412476,82767.0,82766.0,0.001]
[1742297362434,0.4512476,82767.0,82766.0,0.001]
[1742297362847,0.4512476,82767.0,82766.0,0.1218322]
[1742297365155,0.5687676,82767.0,82766.0,0.1218322]
[1742297365949,0.5787676,82767.0,82766.0,0.1218322]
[1742297366842,0.5787676,82767.0,82766.0,0.1525322]
[1742297367343,0.5787676,82767.0,82766.0,0.1218322]
[1742297368440,0.5787676,82767.0,82766.0,0.1525322]
[1742297370431,0.5787676,82767.0,82766.0,0.1850322]
[1742297378749,0.5787676,82767.0,82766.0,0.1840322]
[1742297378949,0.5797676,82767.0,82766.0,0.1840322]
[1742297382742,0.5797676,82767.0,82766.0,0.11600864]
[1742297383346,0.5797676,82767.0,82766.0,0.04798504]
[1742297384556,0.5797676,82767.0,82766.0,0.16881724]
[1742297386844,0.1208322,82766.0,82765.0,4e-05]
[1742297387053,0.4438322,82766.0,82765.0,4e-05]
[1742297388753,0.1208351,82764.0,82763.0,0.1208358]
[1742297388949,0.3608351,82764.0,82763.0,0.1208758]
[1742297389261,0.4272351,82764.0,82763.0,4e-05]
[1742297389561,0.4272351,82764.0,82763.0,0.06424]
[1742297390253,0.4272351,82764.0,82763.0,0.06524]
[1742297390458,0.4272351,82764.0,82763.0,0.1860766]
[1742297391053,0.4272351,82764.0,82763.0,0.06524]
[1742297391254,0.4272351,82764.0,82763.0,0.00104]
[1742297392255,0.4272351,82764.0,82763.0,0.1218766]
[1742297392849,0.4272351,82764.0,82763.0,0.1550766]
[1742297393156,0.4272351,82764.0,82763.0,0.1526766]
[1742297393459,0.4272351,82764.0,82763.0,0.1218766]
[1742297394661,0.4272351,82764.0,82763.0,0.00104]
[1742297395157,0.4272351,82764.0,82763.0,4e-05]
[1742297396260,0.4282351,82764.0,82763.0,4e-05]
[1742297397453,0.4282351,82764.0,82763.0,0.1208766]
[1742297400451,0.4282351,82764.0,82763.0,0.05284753]
[1742297400954,0.4282351,82764.0,82763.0,0.11604753]
[1742297402262,0.120838,82762.0,82761.0,0.01970884]
[1742297402465,0.1208424,82759.0,82758.0,0.0316]
[1742297402662,0.3608424,82759.0,82758.0,0.1524439]
[1742297402862,0.4568424,82759.0,82758.0,0.1208439]
[1742297403063,0.0604235,82756.0,82754.0,0.1238246]
[1742297403362,0.4512703,82756.0,82755.0,0.13183348]
[1742297403557,0.1208541,82751.0,82750.0,0.87784]
[1742297403761,0.3908541,82751.0,82750.0,0.87784]
[1742297404068,0.4219541,82751.0,82750.0,0.88882528]
[1742297404566,0.4209541,82751.0,82750.0,0.01880154]
[1742297404760,0.1208614,82746.0,82745.0,0.1208623]
[1742297405067,0.1208643,82744.0,82743.0,0.4212326]
[1742297405267,0.1208672,82742.0,82741.0,0.031]
[1742297405458,0.1208672,82742.0,82740.0,4e-05]
[1742297405459,0.1208687,82741.0,82740.0,0.03244]
[1742297405665,0.4008687,82741.0,82740.0,0.1209101]
[1742297405868,0.4008687,82741.0,82740.0,0.13189538]
[1742297406457,0.4008687,82741.0,82740.0,0.02915683]
[1742297406656,0.4008687,82741.0,82740.0,0.01817155]
[1742297407055,0.4008687,82741.0,82740.0,0.01813155]
[1742297407355,0.4008687,82741.0,82740.0,0.001]
[1742297407555,0.4008687,82741.0,82740.0,0.14014079]
[1742297407768,0.4008687,82741.0,82740.0,0.1848701]
[1742297408266,0.4028687,82741.0,82740.0,0.21377913]
[1742297409248,0.4038687,82741.0,82740.0,0.21177913]
[1742297410254,0.4038687,82741.0,82740.0,0.20079385]
[1742297410458,0.4355687,82741.0,82740.0,0.13979385]
[1742297411768,0.4355687,82741.0,82740.0,0.01892375]
[1742297411971,0.1208701,82740.0,82739.0,4e-05]
[1742297412170,0.120876,82736.0,82735.0,0.3608]
[1742297412354,0.350876,82736.0,82735.0,0.3608]
[1742297412558,0.350876,82736.0,82735.0,0.4453662]
[1742297413071,0.350876,82736.0,82735.0,0.57722898]
[1742297413571,0.23,82736.0,82735.0,0.57722898]
[1742297414469,0.350876,82736.0,82735.0,0.57722898]
[1742297415372,0.351876,82736.0,82735.0,0.57722898]
[1742297416471,0.231,82736.0,82735.0,0.57722898]
[1742297417062,0.351876,82736.0,82735.0,0.57722898]
[1742297417464,0.231,82736.0,82735.0,0.57722898]
[1742297417665,0.231,82736.0,82735.0,0.57822898]
[1742297417666,0.23,82736.0,82735.0,0.57822898]
[1742297417865,0.23,82736.0,82735.0,0.58022898]
[1742297419573,0.350876,82736.0,82735.0,0.58022898]
[1742297419775,0.413476,82736.0,82735.0,0.58022898]
[1742297421669,0.413476,82736.0,82735.0,0.21942898]
[1742297421873,0.2926,82736.0,82735.0,0.58022898]
[1742297422665,0.413476,82736.0,82735.0,0.58022898]
[1742297426389,0.2926,82736.0,82735.0,0.58022898]
[1742297427479,0.413476,82736.0,82735.0,0.61062898]
[1742297427668,0.413476,82736.0,82735.0,0.61262898]
[1742297436778,0.413476,82736.0,82735.0,0.61162898]
[1742297436981,0.413476,82736.0,82735.0,0.61362898]
[1742297438581,0.413476,82736.0,82735.0,0.61462898]
[1742297439374,0.413476,82736.0,82735.0,0.61362898]
[1742297439777,0.183476,82736.0,82735.0,0.61362898]
[1742297440075,0.3608,82765.0,82753.0,0.0604255]
[1742297440278,0.2132703,82757.0,82756.0,0.1208468]
[1742297440473,0.6007903,82757.0,82756.0,0.1842468]
[1742297441681,0.6007903,82757.0,82756.0,0.1208468]
[1742297442587,0.6007903,82757.0,82756.0,0.13850648]
[1742297442787,0.6017903,82757.0,82756.0,0.13850648]
[1742297443189,0.6332903,82757.0,82756.0,0.13850648]
[1742297443390,0.6342903,82757.0,82756.0,0.13850648]
[1742297443693,0.6342903,82757.0,82756.0,0.17110648]
[1742297444495,0.6332903,82757.0,82756.0,0.17110648]
[1742297445393,0.6663903,82757.0,82756.0,0.17110648]
[1742297448398,0.6663903,82757.0,82756.0,0.20320648]
[1742297449000,0.5488703,82757.0,82756.0,0.20320648]
[1742297449204,0.5488703,82757.0,82756.0,0.21419176]
[1742297451789,0.271,82757.0,82756.0,0.21419176]
[1742297452183,0.271,82757.0,82756.0,1.20967176]
[1742297452791,0.335,82757.0,82756.0,1.20967176]
[1742297453899,0.271,82757.0,82756.0,1.20967176]
[1742297454992,0.23920313,82757.0,82756.0,1.20967176]
[1742297456200,0.23920313,82757.0,82756.0,1.21367176]
[1742297456395,0.23820313,82757.0,82756.0,1.21667176]
[1742297457801,0.0632,82764.0,82763.0,0.1208366]
[1742297458002,0.0932,82764.0,82763.0,0.5765366]
[1742297458186,0.0932,82764.0,82763.0,0.58752188]
[1742297458690,0.2140351,82764.0,82763.0,0.58752188]
[1742297459003,0.2140351,82764.0,82763.0,0.55742188]
[1742297459800,0.2140351,82764.0,82763.0,0.55842188]
[1742297460198,0.0932,82764.0,82763.0,0.55842188]
[1742297461306,0.2140351,82764.0,82763.0,0.49562188]
[1742297462804,0.2140351,82764.0,82763.0,0.52842188]
[1742297463101,0.2140351,82764.0,82763.0,0.01398528]
[1742297463307,0.2140351,82764.0,82763.0,0.003]
[1742297463508,0.2140351,82764.0,82763.0,0.1238366]
[1742297464905,0.2150351,82764.0,82763.0,0.1208366]
[1742297465207,0.2150351,82764.0,82763.0,0.1228366]
[1742297465808,0.2150351,82764.0,82763.0,0.1208366]
[1742297466005,0.2150351,82764.0,82763.0,0.1530366]
[1742297466307,0.0942,82764.0,82763.0,0.1830366]
[1742297466604,0.0942,82764.0,82763.0,0.22562188]
[1742297467107,0.0932,82764.0,82763.0,0.22562188]
[1742297467605,0.2140351,82764.0,82763.0,0.1208366]
[1742297468502,0.2140351,82764.0,82763.0,0.1819366]
[1742297469205,0.0932,82764.0,82763.0,0.1819366]
[1742297469412,0.0932,82764.0,82763.0,0.19292188]
[1742297469606,0.0932,82764.0,82763.0,0.19392188]
[1742297470903,0.2140351,82764.0,82763.0,0.19392188]
[1742297471700,0.0932,82764.0,82763.0,0.19392188]
[1742297472815,0.0932,82764.0,82763.0,0.19292188]
[1742297473013,0.0932,82764.0,82763.0,0.19492188]
[1742297473214,0.0932,82764.0,82763.0,0.19592188]
[1742297473935,0.0932,82764.0,82763.0,0.19692188]
[1742297476817,0.06831552,82764.0,82763.0,0.19692188]
[1742297477823,0.10061552,82764.0,82763.0,0.19692188]
[1742297483425,0.10061552,82764.0,82763.0,0.1549366]
[1742297483619,0.22145062,82764.0,82763.0,0.004]
[1742297484322,0.22145062,82764.0,82763.0,0.0371]
[1742297484825,0.10061552,82764.0,82763.0,0.1579366]
[1742297485020,0.22145062,82764.0,82763.0,0.1887366]
[1742297485615,0.22145062,82764.0,82763.0,0.1877366]
[1742297486620,0.06831552,82764.0,82763.0,0.19872188]
[1742297487214,0.06831552,82764.0,82763.0,0.19772188]
[1742297487414,0.18915062,82764.0,82763.0,0.19772188]
[1742297488018,0.18915062,82764.0,82763.0,0.19872188]
[1742297490122,0.06831552,82764.0,82763.0,0.19872188]
[1742297490922,0.03,82764.0,82763.0,0.19872188]
[1742297491834,0.0618,82764.0,82763.0,0.19872188]
[1742297492628,0.0943,82764.0,82763.0,0.19872188]
[1742297494516,0.0618,82764.0,82763.0,0.19872188]
[1742297496835,0.0949,82764.0,82763.0,0.19872188]
[1742297501623,0.0949,82764.0,82763.0,0.1238366]
[1742297501825,0.127,82764.0,82763.0,0.1238366]
[1742297502436,0.2478351,82764.0,82763.0,0.1238366]
[1742297504022,0.2478351,82764.0,82763.0,0.1540366]
[1742297506437,0.2478351,82764.0,82763.0,0.1872366]
[1742297507535,0.2478351,82764.0,82763.0,0.1540366]
[1742297508540,0.2478351,82764.0,82763.0,0.003]
[1742297508934,0.2478351,82764.0,82763.0,0.1238366]
[1742297510436,0.2478351,82764.0,82763.0,0.1218366]
[1742297511634,0.2478351,82764.0,82763.0,0.1208366]
[1742297511835,0.2498351,82764.0,82763.0,0.1208366]
[1742297513830,0.1208366,82763.0,82762.0,0.120878]
[1742297514032,0.3508366,82763.0,82762.0,0.120878]
[1742297514227,0.4156366,82763.0,82762.0,0.120878]
[1742297515529,0.4156366,82763.0,82762.0,0.153678]
[1742297515938,0.4166366,82763.0,82762.0,0.153678]
[1742297516443,0.4166366,82763.0,82762.0,0.184778]
[1742297521644,0.4166366,82763.0,82762.0,0.06394]
[1742297521843,0.4166366,82763.0,82762.0,4e-05]
[1742297525048,0.4166366,82763.0,82762.0,0.120838]
[1742297525538,0.4166366,82763.0,82762.0,0.151238]
[1742297526643,0.4166366,82763.0,82762.0,0.120838]
[1742297526836,0.4166366,82763.0,82762.0,0.151238]
[1742297527145,0.4166366,82763.0,82762.0,0.182838]
[1742297530242,0.4166366,82763.0,82762.0,0.062]
[1742297531145,0.120838,82762.0,82761.0,4e-05]
[1742297531347,0.1208482,82755.0,82744.0,0.0308]
[1742297531655,0.120857,82749.0,82744.0,0.1208637]
[1742297531952,0.488257,82749.0,82748.0,0.01617318]
[1742297532155,0.488257,82749.0,82748.0,0.03098128]
[1742297532343,0.550057,82749.0,82748.0,0.03098128]
[1742297532744,0.549057,82749.0,82748.0,0.18483978]
[1742297533342,0.551057,82749.0,82748.0,0.18483978]
[1742297534657,0.551057,82749.0,82748.0,0.20102621]
[1742297534955,0.549057,82749.0,82748.0,0.132985]
[1742297535141,0.552057,82749.0,82748.0,0.132985]
[1742297535754,0.551057,82749.0,82748.0,0.132985]
[1742297536151,0.552057,82749.0,82748.0,0.132985]
[1742297537349,0.552057,82749.0,82748.0,0.01618643]
[1742297537555,0.552057,82749.0,82748.0,0.1208585]
[1742297537946,0.552057,82749.0,82748.0,0.13714071]
[1742297538243,0.552057,82749.0,82748.0,0.16754071]
[1742297538841,0.552057,82749.0,82748.0,0.19954071]
[1742297540458,0.552057,82749.0,82748.0,0.16754071]
[1742297541753,0.552057,82749.0,82748.0,0.01628221]
[1742297542050,0.1208585,82748.0,82747.0,8e-05]
[1742297542254,0.3508585,82748.0,82747.0,8e-05]
[1742297542449,0.4155585,82748.0,82747.0,4e-05]
[1742297543249,0.4165585,82748.0,82747.0,4e-05]
[1742297543843,0.4175585,82748.0,82747.0,4e-05]
[1742297544444,0.1208804,82733.0,82729.0,0.1208848]
[1742297544649,0.3708804,82733.0,82731.0,0.1513829]
[1742297544952,0.3708804,82733.0,82732.0,0.89369526]
[1742297545152,0.4020804,82733.0,82732.0,0.92439526]
[1742297545748,0.4335804,82733.0,82732.0,0.92439526]
[1742297546446,0.4345804,82733.0,82732.0,0.95639526]
[1742297546646,0.4355804,82733.0,82732.0,0.95639526]
[1742297546850,0.4345804,82733.0,82732.0,0.95639526]
[1742297547049,0.4365804,82733.0,82732.0,0.95639526]
[1742297547561,0.4365804,82733.0,82732.0,0.92439526]
[1742297548253,0.4365804,82733.0,82732.0,1.04527706]
[1742297548453,0.4365804,82733.0,82732.0,1.07727706]
[1742297549452,0.4355804,82733.0,82732.0,1.07727706]
[1742297549756,0.4365804,82733.0,82732.0,1.07727706]
[1742297550959,0.4365804,82733.0,82732.0,0.95639526]
[1742297552357,0.4365804,82733.0,82732.0,0.92439526]
[1742297552762,0.4365804,82733.0,82732.0,0.95539526]
[1742297553160,0.4365804,82733.0,82732.0,0.92439526]
[1742297555554,0.4365804,82733.0,82732.0,0.89369526]
[1742297556163,0.1208862,82729.0,82728.0,0.0318]
[1742297556364,0.1208862,82729.0,82722.0,0.0318]
[1742297556365,0.0604451,82727.0,82726.0,4e-05]
[1742297556568,0.3104451,82727.0,82726.0,4e-05]
[1742297557064,0.4054451,82727.0,82726.0,4e-05]
[1742297557271,0.4054451,82727.0,82726.0,0.01565897]
[1742297557972,0.4054451,82727.0,82726.0,0.01561897]
[1742297558160,0.1208921,82725.0,82724.0,0.0321]
[1742297558355,0.3608921,82725.0,82724.0,0.0321]
[1742297558561,0.4256921,82725.0,82724.0,0.0321]
[1742297558959,0.4256921,82725.0,82724.0,0.04736753]
[1742297559871,0.4276921,82725.0,82724.0,0.04736753]
[1742297560257,0.4266921,82725.0,82724.0,0.04736753]
[1742297560464,0.7884921,82725.0,82724.0,0.01526753]
[1742297560657,0.1208935,82724.0,82723.0,0.0318]
[1742297560868,0.3608935,82724.0,82723.0,0.0318]
[1742297561174,0.4256935,82724.0,82723.0,0.04737735]
[1742297563368,0.4296935,82724.0,82723.0,0.04737735]